bitfinex-derivatives/quotes_SOLF0:USTF0_20250903
["timestamp","ask_amount","ask_price","bid_price","bid_amount"]
[1756905100899,3.44508902,210.32,210.25,7.87]
[1756905101098,3.44508902,210.35,210.25,7.87]
[1756905102799,3.44508902,210.32,210.25,7.87]
[1756905102996,7.23,210.31,210.25,7.87]
[1756905103295,10.67508902,210.35,210.25,7.87]
[1756905105406,3.44508902,210.38,210.26,7.72]
[1756905105597,7.23,210.37,210.26,7.72]
[1756905106106,3.44508902,210.35,210.26,7.72]
[1756905106307,7.23,210.34,210.26,7.72]
[1756905109611,3.44508902,210.35,210.22,327.06]
[1756905110014,10.67508902,210.35,210.22,7.72]
[1756905112010,10.67508902,210.35,210.23,4.2801]
[1756905112219,7.23,210.39,210.28,7.72]
[1756905113519,2.20987039,210.35,210.28,7.72]
[1756905114821,5.26812562,210.41,210.26,53.74]
[1756905114822,7.23,210.41,210.3,2.20987039]
[1756905115022,2.20987039,210.39,210.32,2.20987039]
[1756905115324,2.20987039,210.39,210.31,7.72]
[1756905115619,2.20987039,210.4,210.32,2.20987039]
[1756905116218,2.20987039,210.4,210.31,7.72]
[1756905116422,2.20987039,210.4,210.33,2.20987039]
[1756905117528,2.20987039,210.4,210.31,7.72]
[1756905117825,2.20987039,210.4,210.34,7.72]
[1756905118021,7.47799601,210.44,210.35,2.20987039]
[1756905118229,2.20987039,210.44,210.36,7.72]
[1756905120223,2.20987039,210.42,210.36,7.72]
[1756905121521,2.20987039,210.44,210.36,7.72]
[1756905121726,2.20987039,210.46,210.38,7.72]
[1756905122026,2.20987039,210.46,210.39,2.20987039]
[1756905122226,7.23,210.47,210.39,2.20987039]
[1756905122928,2.20987039,210.49,210.42,7.72]
[1756905123120,7.23,210.51,210.43,2.20987039]
[1756905123319,9.43987039,210.51,210.43,2.20987039]
[1756905123929,7.23,210.51,210.45,9.92987039]
[1756905124629,9.43987039,210.51,210.45,7.72]
[1756905126825,7.23,210.51,210.45,7.72]
[1756905129931,7.23,210.51,210.43,2.20987039]
[1756905130427,2.20987039,210.5,210.43,2.20987039]
[1756905130628,9.43987039,210.48,210.41,7.72]
[1756905130929,2.20987039,210.47,210.41,7.72]
[1756905131432,2.20987039,210.47,210.37,9.92987039]
[1756905131630,7.23,210.48,210.4,7.48]
[1756905131631,9.43987039,210.48,210.4,7.48]
[1756905131833,7.51,210.53,210.43,2.20987039]
[1756905132035,2.20987039,210.51,210.43,2.20987039]
[1756905132533,7.51,210.5,210.42,9.68987039]
[1756905133332,7.51,210.48,210.41,2.20987039]
[1756905133534,2.20987039,210.47,210.39,9.68987039]
[1756905133932,2.20987039,210.45,210.39,7.48]
[1756905134339,2.20987039,210.43,210.35,28.84987039]
[1756905134636,2.20987039,210.43,210.35,7.48]
[1756905136035,2.20987039,210.41,210.35,7.48]
[1756905136936,2.20987039,210.43,210.35,7.48]
[1756905137533,2.20987039,210.43,210.37,7.48]
[1756905138839,2.20987039,210.41,210.37,7.48]
[1756905139039,9.71987039,210.41,210.37,7.48]
[1756905139239,2.20987039,210.39,210.33,7.48]
[1756905145743,9.71987039,210.41,210.33,7.48]
[1756905146139,9.71987039,210.41,210.34,2.20987039]
[1756905146343,9.71987039,210.41,210.35,7.48]
[1756905149245,7.51,210.38,210.31,7.48]
[1756905149645,2.20987039,210.37,210.31,7.48]
[1756905150053,7.51,210.38,210.31,7.48]
[1756905150254,2.20987039,210.36,210.3,7.48]
[1756905151349,7.51,210.42,210.33,2.20987039]
[1756905151650,2.20987039,210.41,210.34,7.48]
[1756905153049,7.51,210.42,210.34,7.48]
[1756905153050,9.71987039,210.38,210.34,7.48]
[1756905153651,9.71987039,210.38,210.31,7.48]
[1756905153949,2.20987039,210.41,210.33,7.48]
[1756905154152,2.20987039,210.41,210.34,2.20987039]
[1756905154356,2.20987039,210.41,210.35,7.48]
[1756905155354,2.20987039,210.39,210.35,7.48]
[1756905155555,9.71987039,210.39,210.35,7.48]
[1756905155945,2.20987039,210.37,210.31,7.48]
[1756905160757,2.20987039,210.35,210.26,7.48]
[1756905160959,2.20987039,210.31,210.26,7.48]
[1756905161153,2.20987039,210.31,210.24,7.48]
[1756905162152,2.20987039,210.33,210.25,2.20987039]
[1756905162753,2.20987039,210.35,210.27,2.20987039]
[1756905162958,7.28,210.37,210.23,319.56]
[1756905162959,7.28,210.37,210.3,7.86]
[1756905163856,9.48987039,210.37,210.3,7.86]
[1756905166063,7.28,210.34,210.3,7.86]
[1756905166254,9.48987039,210.35,210.27,2.20987039]
[1756905166455,5.26812562,210.41,210.3,2.20987039]
[1756905166456,5.26812562,210.39,210.3,2.20987039]
[1756905166664,15.18640364,210.41,210.32,2.20987039]
[1756905166665,2.20987039,210.4,210.32,2.20987039]
[1756905167164,2.20987039,210.38,210.31,7.86]
[1756905167761,7.28,210.39,210.31,7.86]
[1756905167961,2.20987039,210.38,210.31,10.06987039]
[1756905168264,9.48987039,210.39,210.31,10.06987039]
[1756905168456,9.48987039,210.39,210.31,7.86]
[1756905169960,2.20987039,210.37,210.28,2.20987039]
[1756905170267,7.28,210.36,210.28,10.06987039]
[1756905171864,2.20987039,210.35,210.28,7.86]
[1756905172067,9.48987039,210.33,210.22,74.18]
[1756905172262,9.48987039,210.33,210.25,2.20987039]
[1756905172963,9.48987039,210.33,210.26,7.86]
[1756905173368,7.28,210.33,210.27,2.20987039]
[1756905173570,2.20987039,210.35,210.27,2.20987039]
[1756905173870,9.48987039,210.37,210.29,10.06987039]
[1756905174268,9.48987039,210.37,210.29,7.86]
[1756905174471,2.20987039,210.35,210.29,7.86]
[1756905175466,7.28,210.37,210.29,7.86]
[1756905180777,12.54812562,210.37,210.29,7.86]
[1756905182279,7.28,210.37,210.29,7.86]
[1756905182969,5.26812562,210.38,210.29,7.86]
[1756905183171,12.54812562,210.4,210.29,7.86]
[1756905183570,5.26812562,210.4,210.29,7.86]
[1756905183776,5.26812562,210.47,210.38,7.86]
[1756905183972,7.28,210.49,210.4,3.4531454]
[1756905184170,7.28,210.49,210.41,7.86]
[1756905185674,5.26812562,210.52,210.41,7.86]
[1756905185877,12.54812562,210.53,210.41,7.86]
[1756905187276,12.54812562,210.53,210.36,4.2775]
[1756905187277,7.28,210.53,210.44,7.86]
[1756905192478,3.4531454,210.52,210.4,7.37]
[1756905192672,7.56,210.51,210.4,7.37]
[1756905193379,7.56,210.51,210.42,3.4531454]
[1756905193677,7.56,210.51,210.43,7.37]
[1756905195087,25.94812562,210.58,210.47,7.37]
[1756905195088,7.56,210.58,210.47,7.37]
[1756905195379,7.56,210.58,210.49,3.4531454]
[1756905195683,7.56,210.58,210.5,7.37]
[1756905195983,5.26812562,210.62,210.5,7.37]
[1756905195984,7.56,210.62,210.5,7.37]
[1756905197087,7.56,210.62,210.52,7.37]
[1756905197383,102.66667528,210.65,210.52,7.37]
[1756905197678,102.66667528,210.65,210.51,3.4531454]
[1756905197679,102.66667528,210.65,210.55,7.37]
[1756905200480,102.66667528,210.65,210.45,66.5086]
[1756905200481,102.66667528,210.65,210.42,7.37]
[1756905200687,102.66667528,210.65,210.51,7.37]
[1756905200688,7.56,210.64,210.51,7.37]
[1756905201486,102.66667528,210.65,210.46,7.37]
[1756905201487,7.56,210.57,210.46,7.37]
[1756905201683,7.56,210.57,210.47,3.4531454]
[1756905201989,7.56,210.57,210.48,7.37]
[1756905203483,3.4531454,210.61,210.5,3.4531454]
[1756905203484,7.56,210.61,210.5,3.4531454]
[1756905203781,7.56,210.61,210.51,7.37]
[1756905204791,7.56,210.61,210.46,4.2753]
[1756905204792,7.56,210.6,210.47,7.37]
[1756905205689,7.56,210.58,210.47,7.37]
[1756905206185,7.56,210.58,210.49,3.4531454]
[1756905206392,3.4531454,210.62,210.5,7.37]
[1756905207191,7.56,210.61,210.5,7.37]
[1756905209688,7.56,210.69,210.55,3.4531454]
[1756905209890,7.56,210.69,210.56,7.37]
[1756905211093,7.56,210.66,210.56,7.37]
[1756905216600,3.4531454,210.65,210.5,3.4531454]
[1756905216799,3.4531454,210.62,210.51,7.37]
[1756905217103,7.56,210.61,210.51,7.37]
[1756905217299,7.56,210.61,210.47,3.4531454]
[1756905217499,3.4531454,210.59,210.45,7.37]
[1756905217803,7.56,210.58,210.45,7.37]
[1756905218507,3.4531454,210.56,210.45,7.37]
[1756905218704,7.56,210.55,210.45,7.37]
[1756905227111,7.64,210.52,210.4,7.79]
[1756905229809,7.64,210.52,210.41,4.2763]
[1756905230010,7.64,210.52,210.42,7.79]
[1756905233011,11.0931454,210.52,210.42,7.79]
[1756905233710,105.44636178,210.62,210.42,7.79]
[1756905233711,3.4531454,210.63,210.49,3.4531454]
[1756905233906,7.64,210.62,210.5,128.25]
[1756905234107,7.64,210.62,210.51,7.79]
[1756905234315,7.64,210.62,210.52,3.4531454]
[1756905234614,7.64,210.62,210.53,7.79]
[1756905235513,9.8445807,210.62,210.54,2.2045807]
[1756905236106,9.8445807,210.62,210.53,9.9945807]
[1756905237509,2.2045807,210.6,210.53,9.9945807]
[1756905237814,2.2045807,210.6,210.53,7.79]
[1756905240116,2.2045807,210.6,210.53,9.9945807]
[1756905240312,2.2045807,210.58,210.45,7.79]
[1756905240517,2.2045807,210.58,210.5,9.9945807]
[1756905243119,2.2045807,210.58,210.5,7.79]
[1756905243424,7.64,210.59,210.5,7.79]
[1756905243425,2.2045807,210.56,210.5,7.79]
[1756905245114,7.64,210.59,210.52,7.79]
[1756905245519,2.2045807,210.58,210.52,7.79]
[1756905245820,2.2045807,210.56,210.48,7.79]
[1756905246017,7.64,210.57,210.5,7.79]
[1756905247522,7.64,210.63,210.5,7.79]
[1756905247823,2.2045807,210.59,210.52,7.79]
[1756905249514,7.64,210.6,210.52,7.79]
[1756905249715,2.2045807,210.59,210.52,7.79]
[1756905252422,47.8,210.68,210.46,7.49]
[1756905252423,2.2045807,210.55,210.46,7.49]
[1756905252628,2.2045807,210.53,210.46,7.49]
[1756905252926,2.2045807,210.53,210.44,2.2045807]
[1756905252927,2.2045807,210.51,210.42,103.8345807]
[1756905253729,2.2045807,210.49,210.42,101.63]
[1756905255323,2.2045807,210.49,210.42,7.49]
[1756905255518,9.9145807,210.47,210.42,7.49]
[1756905255721,7.71,210.46,210.42,7.49]
[1756905256129,2.2045807,210.47,210.42,7.49]
[1756905256831,2.2045807,210.47,210.41,7.49]
[1756905260524,5.26812562,210.55,210.42,2.2045807]
[1756905260723,2.2045807,210.53,210.45,7.49]
[1756905261230,2.2045807,210.53,210.46,2.2045807]
[1756905261627,2.2045807,210.53,210.45,7.49]
[1756905261933,2.2045807,210.53,210.46,2.2045807]
[1756905262330,7.71,210.54,210.46,2.2045807]
[1756905262532,2.2045807,210.55,210.48,2.2045807]
[1756905262833,2.2045807,210.55,210.48,9.6945807]
[1756905266030,2.2045807,210.59,210.52,2.2045807]
[1756905266336,2.2045807,210.61,210.54,2.2045807]
[1756905266536,7.71,210.62,210.55,7.49]
[1756905266833,9.9145807,210.62,210.55,7.49]
[1756905267031,7.71,210.62,210.55,7.49]
[1756905267429,12.97812562,210.68,210.57,7.49]
[1756905267740,2.2045807,210.65,210.58,2.2045807]
[1756905269238,2.2045807,210.65,210.57,9.6945807]
[1756905269732,7.71,210.68,210.57,9.6945807]
[1756905269929,2.2045807,210.66,210.58,7.49]
[1756905270239,5.26812562,210.7,210.62,2.2045807]
[1756905270441,5.26812562,210.72,210.63,7.49]
[1756905270638,9.9145807,210.74,210.63,7.49]
[1756905270639,7.71,210.74,210.63,7.49]
[1756905270935,7.71,210.74,210.66,2.2045807]
[1756905271137,7.71,210.72,210.63,7.49]
[1756905271337,2.2045807,210.71,210.63,9.6945807]
[1756905271836,7.71,210.72,210.63,9.6945807]
[1756905272139,7.71,210.72,210.63,7.49]
[1756905272334,9.9145807,210.72,210.64,2.2045807]
[1756905274643,7.71,210.72,210.64,2.2045807]
[1756905275341,7.71,210.72,210.66,2.2045807]
[1756905276947,7.71,210.72,210.68,2.2045807]
[1756905278952,7.71,210.76,210.7,2.2045807]
[1756905282355,7.71,210.76,210.6,66.4627]
[1756905282356,7.89,210.81,210.72,2.2045807]
[1756905282652,2.2045807,210.8,210.72,2.2045807]
[1756905283453,7.89,210.85,210.73,7.65]
[1756905283649,333.34,210.98,210.75,2.2045807]
[1756905283650,7.89,210.82,210.75,2.2045807]
[1756905284660,2.2045807,210.81,210.73,9.8545807]
[1756905285661,7.89,210.8,210.73,7.65]
[1756905285857,7.89,210.8,210.73,9.8545807]
[1756905286863,10.0945807,210.8,210.73,9.8545807]
[1756905287561,10.0945807,210.8,210.73,7.65]
[1756905287861,10.0945807,210.8,210.73,9.8545807]
[1756905289054,7.89,210.8,210.73,9.8545807]
[1756905289457,7.89,210.9,210.76,7.65]
[1756905289661,2.2045807,210.87,210.79,2.2045807]
[1756905290261,2.2045807,210.86,210.78,2.2045807]
[1756905290659,7.89,210.85,210.76,7.65]
[1756905290963,7.89,210.85,210.76,9.8545807]
[1756905291158,7.89,210.85,210.78,2.2045807]
[1756905292357,2.2045807,210.82,210.69,69.8]
[1756905292665,2.2045807,210.8,210.7,7.65]
[1756905292962,2.2045807,210.8,210.71,2.2045807]
[1756905293162,7.89,210.81,210.73,2.2045807]
[1756905293865,2.2045807,210.8,210.73,2.2045807]
[1756905294066,2.2045807,210.8,210.72,7.65]
[1756905294262,2.2045807,210.8,210.72,9.8545807]
[1756905294962,2.2045807,210.8,210.72,7.65]
[1756905295156,2.2045807,210.78,210.71,2.2045807]
[1756905295363,10.0945807,210.78,210.69,2.2045807]
[1756905295562,7.89,210.78,210.68,7.65]
[1756905297070,7.89,210.78,210.7,7.65]
[1756905298571,7.89,210.78,210.66,7.65]
[1756905298767,7.89,210.76,210.66,7.65]
[1756905300069,3.43972289,210.74,210.66,7.65]
[1756905300269,7.89,210.73,210.62,105.5280016]
[1756905300470,3.43972289,210.71,210.61,7.65]
[1756905300673,7.89,210.7,210.61,7.65]
[1756905300874,7.89,210.74,210.61,7.65]
[1756905302172,3.43972289,210.7,210.61,7.65]
[1756905302370,7.89,210.69,210.61,7.65]
[1756905303365,11.32972289,210.73,210.61,7.65]
[1756905304973,3.43972289,210.7,210.61,7.65]
[1756905305174,11.32972289,210.73,210.61,7.65]
[1756905305578,7.89,210.69,210.61,7.65]
[1756905306078,7.89,210.69,210.57,76.67]
[1756905306681,7.89,210.68,210.57,76.67]
[1756905307973,5.26812562,210.76,210.53,330.02972289]
[1756905307974,7.89,210.65,210.53,330.02972289]
[1756905308174,7.89,210.65,210.53,326.59]
[1756905308374,7.89,210.65,210.54,7.65]
[1756905308575,3.43972289,210.68,210.54,7.65]
[1756905308773,3.43972289,210.68,210.56,7.65]
[1756905309474,3.43972289,210.68,210.57,4.2733]
[1756905309674,7.89,210.69,210.58,7.65]
[1756905309876,7.89,210.76,210.6,7.65]
[1756905310073,7.89,210.77,210.6,7.65]
[1756905310378,11.32972289,210.74,210.63,7.65]
[1756905310677,7.89,210.74,210.63,7.65]
[1756905311782,3.43972289,210.72,210.63,7.65]
[1756905312879,11.32972289,210.74,210.63,7.65]
[1756905314084,11.32972289,210.74,210.64,7.7]
[1756905315587,7.89,210.74,210.64,7.7]
[1756905316588,5.26812562,210.78,210.65,7.7]
[1756905316589,7.84,210.78,210.65,7.7]
[1756905317483,7.84,210.75,210.65,7.7]
[1756905319389,7.84,210.75,210.66,7.7]
[1756905320183,7.84,210.75,210.66,11.9713]
[1756905322589,7.84,210.75,210.67,4.2712]
[1756905323091,7.84,210.79,210.68,7.7]
[1756905323285,7.84,210.79,210.71,7.7]
[1756905325588,72.81481462,210.81,210.73,7.7]
[1756905326292,318.94,210.87,210.76,7.7]
[1756905326293,7.84,210.87,210.76,7.7]
[1756905326695,7.84,210.87,210.77,4.2691]
[1756905326987,7.84,210.87,210.78,7.7]
[1756905327193,7.84,210.87,210.78,11.13972289]
[1756905327993,7.84,210.87,210.78,15.40862289]
[1756905328193,7.84,210.87,210.78,7.70862289]
[1756905328494,7.84,210.91,210.79,7.7]
[1756905328888,7.84,210.91,210.82,7.7]
[1756905329289,7.84,210.96,210.84,3.43972289]
[1756905329488,7.84,210.96,210.85,7.7]
[1756905331397,7.84,210.96,210.85,11.13972289]
[1756905331597,7.84,210.96,210.86,7.7]
[1756905333197,3.43972289,210.95,210.86,7.7]
[1756905333398,3.43972289,210.95,210.72,3.43972289]
[1756905333399,7.84,210.94,210.81,7.7]
[1756905334099,7.84,210.91,210.81,7.7]
[1756905334498,7.84,210.88,210.81,7.7]
[1756905335394,7.84,210.87,210.73,3.43972289]
[1756905335597,7.84,210.84,210.73,11.13972289]
[1756905335995,7.84,210.84,210.73,7.7]
[1756905338695,7.84,210.84,210.74,7.7]
[1756905338899,7.84,210.88,210.74,7.7]
[1756905339102,3.43972289,210.86,210.74,7.7]
[1756905339295,7.84,210.85,210.74,7.7]
[1756905339702,8.72,210.92,210.74,7.7]
[1756905339703,3.43972289,210.83,210.74,7.7]
[1756905339893,3.43972289,210.8,210.69,7.7]
[1756905340094,7.84,210.79,210.69,7.7]
[1756905341098,11.24,210.84,210.68,318.98]
[1756905341099,7.84,210.76,210.68,318.98]
[1756905341494,7.84,210.76,210.65,7.7]
[1756905342304,7.84,210.76,210.58,7.6]
[1756905342498,8.52021835,210.81,210.59,47.34]
[1756905342802,7.22,210.75,210.58,7.6]
[1756905343106,24.6,210.75,210.58,7.6]
[1756905344202,7.22,210.7,210.5,7.6]
[1756905344400,8.52021835,210.66,210.5,7.6]
[1756905344599,7.22,210.65,210.5,7.6]
[1756905346105,7.22,210.65,210.51,7.6]
[1756905346507,7.22,210.65,210.52,7.6]
[1756905347003,7.22,210.71,210.52,7.6]
[1756905347903,7.22,210.71,210.51,66.4912]
[1756905347904,7.22,210.71,210.55,7.6]
[1756905348606,7.22,210.71,210.6,7.6]
[1756905350307,7.22,210.71,210.58,83.0]
[1756905350609,7.22,210.72,210.58,83.0]
[1756905350807,8.52021835,210.73,210.58,83.0]
[1756905351605,7.22,210.72,210.55,4.2737]
[1756905351808,7.22,210.72,210.56,7.6]
[1756905351809,27.42,210.72,210.56,7.6]
[1756905352811,7.22,210.72,210.56,7.6]
[1756905353512,7.22,210.72,210.58,7.6]
[1756905354913,7.22,210.72,210.57,7.6]
[1756905356817,7.22,210.72,210.59,7.6]
[1756905357023,7.22,210.72,210.51,8.52021835]
[1756905357024,7.22,210.66,210.47,7.6]
[1756905357215,29.0,210.66,210.47,7.6]
[1756905357517,29.0,210.66,210.47,11.8754]
[1756905357518,7.22,210.64,210.47,11.8754]
[1756905357816,7.22,210.6,210.47,7.6]
[1756905358819,5.3599722,210.57,210.47,7.6]
[1756905359026,12.5799722,210.57,210.47,7.6]
[1756905360325,7.22,210.52,210.41,7.6]
[1756905360818,5.3599722,210.56,210.41,7.6]
[1756905361018,5.3599722,210.56,210.44,7.6]
[1756905362321,7.22,210.55,210.44,7.6]
[1756905362519,7.22,210.61,210.46,7.6]
[1756905362821,7.22,210.61,210.47,5.3599722]
[1756905363124,7.22,210.61,210.5,4.2746]
[1756905364024,7.22,210.73,210.54,7.6]
[1756905364224,12.5799722,210.73,210.54,7.6]
[1756905364422,7.22,210.73,210.56,7.6]
[1756905364828,7.22,210.73,210.61,4.2725]
[1756905365016,7.22,210.73,210.61,7.6]
[1756905368227,7.22,210.73,210.48,66.5019]
[1756905368228,7.22,210.7,210.53,7.6]
[1756905368924,7.22,210.68,210.53,7.6]
[1756905370225,7.22,210.68,210.54,7.6]
[1756905371029,7.22,210.68,210.55,4.2737]
[1756905372231,7.22,210.68,210.54,7.6]
[1756905373430,7.28,210.66,210.54,7.6]
[1756905377031,5.3599722,210.67,210.5,32.68]
[1756905377226,7.28,210.66,210.5,32.68]
[1756905377426,7.28,210.66,210.51,7.9]
[1756905379743,7.28,210.66,210.51,12.1743]
[1756905380036,7.28,210.66,210.52,7.9]
[1756905380436,7.28,210.66,210.54,4.2739]
[1756905380741,7.28,210.66,210.55,7.9]
[1756905385443,7.28,210.66,210.55,12.1736]
[1756905385840,7.28,210.66,210.55,7.9]
[1756905386040,7.28,210.66,210.51,71.8516722]
[1756905386041,7.28,210.66,210.57,7.9]
[1756905387743,7.28,210.66,210.52,7.9]
[1756905387949,7.28,210.7,210.52,7.9]
[1756905388847,7.28,210.7,210.56,4.2733]
[1756905389149,7.28,210.7,210.57,7.9]
[1756905391559,5.3599722,210.69,210.51,7.9]
[1756905391853,5.26812562,210.67,210.51,7.9]
[1756905392248,7.28,210.66,210.51,7.9]
[1756905394256,7.28,210.66,210.52,5.3599722]
[1756905394456,7.28,210.66,210.54,4.2738]
[1756905394660,7.28,210.66,210.55,7.9]
[1756905395247,7.28,210.66,210.56,4.2733]
[1756905395446,7.28,210.66,210.55,7.9]
[1756905396953,7.28,210.66,210.56,4.2734]
[1756905398058,7.28,210.66,210.57,4.2732]
[1756905398256,7.28,210.7,210.58,7.9]
[1756905398756,7.28,210.75,210.6,5.3599722]
[1756905398960,7.28,210.75,210.61,7.9]
[1756905401855,7.28,210.75,210.62,4.2721]
[1756905402460,7.28,210.75,210.61,7.9]
[1756905402661,7.87,210.73,210.61,7.9]
[1756905403761,7.87,210.73,210.57,71.18]
[1756905404161,10.62809782,210.74,210.57,71.18]
[1756905404560,5.26812562,210.73,210.57,71.18]
[1756905404761,5.3599722,210.74,210.58,7.24]
[1756905404762,7.87,210.72,210.58,7.24]
[1756905405960,7.87,210.72,210.59,4.2727]
[1756905406563,7.87,210.72,210.58,7.24]
[1756905406861,5.3599722,210.7,210.58,7.24]
[1756905407061,7.87,210.72,210.58,7.24]
[1756905407062,7.87,210.69,210.58,7.24]
[1756905407667,7.87,210.73,210.58,7.24]
[1756905408863,13.13812562,210.76,210.62,5.3599722]
[1756905409168,7.87,210.76,210.63,7.24]
[1756905409461,7.87,210.76,210.66,4.2713]
[1756905409666,7.87,210.76,210.66,11.5113]
[1756905410567,7.87,210.76,210.66,7.24]
[1756905416478,7.90640364,210.82,210.68,7.24]
[1756905416479,7.87,210.82,210.68,7.24]
[1756905416770,7.87,210.82,210.7,7.24]
[1756905421083,7.87,210.82,210.71,4.2704]
[1756905421286,7.87,210.82,210.7,7.24]
[1756905423984,7.87,210.82,210.69,7.24]
[1756905424487,7.87,210.82,210.74,7.24]
[1756905425582,7.87,210.86,210.74,7.24]
[1756905427091,7.87,210.86,210.75,4.2694]
[1756905428286,7.87,210.86,210.77,7.24]
[1756905429285,7.87,210.93,210.79,7.24]
[1756905429787,7.87,210.93,210.81,7.24]
[1756905430383,7.87,210.93,210.82,4.2682]
[1756905430587,7.87,210.93,210.83,7.24]
[1756905434187,108.36,210.97,210.83,7.24]
[1756905435288,108.36,210.97,210.86,7.16]
[1756905435488,7.38,210.97,210.86,7.16]
[1756905435989,7.38,210.97,210.86,11.4272]
[1756905436786,7.38,210.97,210.87,4.2671]
[1756905436986,7.38,210.97,210.88,7.16]
[1756905438590,7.38,210.97,210.89,4.2667]
[1756905438792,8.51565449,211.04,210.9,7.16]
[1756905438793,7.38,211.03,210.9,7.16]
[1756905444708,7.38,211.03,210.92,7.16]
[1756905445302,7.38,211.03,210.92,11.426]
[1756905445501,7.38,211.03,210.92,7.16]
[1756905446994,7.38,211.03,210.93,7.16]
[1756905447502,7.38,211.03,210.93,11.4259]
[1756905447902,7.38,211.03,210.94,7.16]
[1756905448298,7.38,211.03,210.95,4.2656]
[1756905448499,7.38,211.11,210.92,7.16]
[1756905450002,7.38,211.11,210.95,7.16]
[1756905454910,7.38,211.12,210.96,7.16]
[1756905456013,7.38,211.12,210.98,4.265]
[1756905456218,7.38,211.12,210.99,7.16]
[1756905458017,7.38,211.16,211.02,7.16]
[1756905463418,3.42875525,211.13,211.02,7.16]
[1756905463724,7.89,211.12,211.02,7.16]
[1756905464024,7.89,211.1,210.96,7.34]
[1756905464424,3.42875525,211.08,210.96,7.34]
[1756905464619,3.42875525,211.05,210.96,7.34]
[1756905464821,7.89,211.04,210.96,7.34]
[1756905467127,11.31875525,211.04,210.96,7.34]
[1756905467522,7.89,211.04,210.96,7.34]
[1756905467723,11.31875525,211.04,210.96,7.34]
[1756905468222,7.89,211.04,210.96,7.34]
[1756905469215,11.31875525,211.04,210.96,7.34]
[1756905469921,11.31875525,211.03,210.93,7.34]
[1756905470123,7.89,211.03,210.93,7.34]
[1756905472821,3.42875525,211.02,210.93,7.34]
[1756905473026,7.89,211.01,210.93,7.34]
[1756905473926,3.42875525,211.08,210.93,7.34]
[1756905473927,7.89,211.06,210.93,7.34]
[1756905474124,11.31875525,211.06,210.93,7.34]
[1756905475534,11.31875525,211.03,210.93,7.34]
[1756905475828,7.89,211.03,210.93,7.34]
[1756905476028,7.89,211.06,210.94,7.34]
[1756905477431,7.89,211.06,210.95,2.19585678]
[1756905477731,2.19585678,211.03,210.95,2.19585678]
[1756905478829,2.19585678,211.02,210.94,7.34]
[1756905479535,2.19585678,210.97,210.9,7.34]
[1756905479937,7.89,211.04,210.92,7.34]
[1756905480133,2.19585678,211.0,210.92,7.34]
[1756905480730,2.19585678,210.98,210.92,7.34]
[1756905481226,7.89,211.01,210.94,2.19585678]
[1756905481425,2.19585678,211.02,210.94,2.19585678]
[1756905481628,2.19585678,211.02,210.95,7.34]
[1756905481830,2.19585678,211.03,210.95,7.34]
[1756905482026,2.19585678,211.01,210.95,7.34]